[Event "Titled Tuesday Blitz July 25 Late 2023"]
[White "Bilan, Danila"]
[Black "Miladinovic, Igor"]
[WhiteFideId "24161918"]
[BlackFideId "4203380"]
[WhiteElo "2527"]
[BlackElo "2801"]
[Result "1-0"]
[Round "11"]
[TimeControl "180+2"]
[Date "2023.07.25"]
[WhiteClock "0:00:05"]
[BlackClock "0:00:00"]
[Board "43"]

1. d4 {[%clk 0:03:00]}  d5 {[%clk 0:02:55]} 2. Nf3 {[%clk 0:02:59]}  Bf5 {[%clk 0:02:54]} 3. c4 {[%clk 0:02:59]}  e6 {[%clk 0:02:55]} 4. Nc3 {[%clk 0:02:58]}  Nc6 {[%clk 0:02:55]} 5. Bf4 {[%clk 0:02:56]}  Bd6 {[%clk 0:02:54]} 6. Bg3 {[%clk 0:02:56]}  Bxg3 {[%clk 0:02:50]} 7. hxg3 {[%clk 0:02:57]}  Nf6 {[%clk 0:02:50]} 8. e3 {[%clk 0:02:56]}  a6 {[%clk 0:02:50]} 9. Bd3 {[%clk 0:02:53]}  dxc4 {[%clk 0:02:50]} 10. Bxc4 {[%clk 0:02:51]}  h6 {[%clk 0:02:49]} 11. Rc1 {[%clk 0:02:44]}  O-O {[%clk 0:02:48]} 12. O-O {[%clk 0:02:44]}  Qe7 {[%clk 0:02:47]} 13. Bd3 {[%clk 0:02:40]}  Bxd3 {[%clk 0:02:46]} 14. Qxd3 {[%clk 0:02:40]}  Rad8 {[%clk 0:02:46]} 15. Ne4 {[%clk 0:02:26]}  Nxe4 {[%clk 0:02:42]} 16. Qxe4 {[%clk 0:02:27]}  Rd5 {[%clk 0:02:41]} 17. Rc3 {[%clk 0:02:10]}  Rfd8 {[%clk 0:02:40]} 18. Rfc1 {[%clk 0:02:10]}  Rb5 {[%clk 0:02:11]} 19. b3 {[%clk 0:01:38]}  Qa3 {[%clk 0:02:05]} 20. R3c2 {[%clk 0:01:13]}  Ra5 {[%clk 0:01:58]} 21. Qh4 {[%clk 0:00:59]}  Rd6 {[%clk 0:01:52]} 22. g4 {[%clk 0:00:33]}  Rdd5 {[%clk 0:01:44]} 23. e4 {[%clk 0:00:23]}  Nxd4 {[%clk 0:01:33]} 24. exd5 {[%clk 0:00:19]}  Nxc2 {[%clk 0:01:32]} 25. Rxc2 {[%clk 0:00:19]}  Rxd5 {[%clk 0:01:30]} 26. g5 {[%clk 0:00:14]}  Qe7 {[%clk 0:01:26]} 27. gxh6 {[%clk 0:00:13]}  g5 {[%clk 0:01:19]} 28. h7+ {[%clk 0:00:13]}  Kh8 {[%clk 0:01:18]} 29. Qh6 {[%clk 0:00:08]}  g4 {[%clk 0:01:12]} 30. Nd2 {[%clk 0:00:02]}  c6 {[%clk 0:01:02]} 31. Nf1 {[%clk 0:00:03]}  f5 {[%clk 0:00:47]} 32. Ne3 {[%clk 0:00:03]}  Rd8 {[%clk 0:00:34]} 33. g3 {[%clk 0:00:03]}  Re8 {[%clk 0:00:33]} 34. Nc4 {[%clk 0:00:03]}  Qxh7 {[%clk 0:00:31]} 35. Qf4 {[%clk 0:00:03]}  Rd8 {[%clk 0:00:26]} 36. Rc1 {[%clk 0:00:02]}  Qg7 {[%clk 0:00:24]} 37. Ne5 {[%clk 0:00:02]}  Rd5 {[%clk 0:00:23]} 38. Re1 {[%clk 0:00:02]}  Kg8 {[%clk 0:00:22]} 39. Kg2 {[%clk 0:00:02]}  c5 {[%clk 0:00:21]} 40. Nc4 {[%clk 0:00:02]}  b5 {[%clk 0:00:21]} 41. Qb8+ {[%clk 0:00:03]}  Qf8 {[%clk 0:00:20]} 42. Qxf8+ {[%clk 0:00:02]}  Kxf8 {[%clk 0:00:21]} 43. Na5 {[%clk 0:00:02]}  Kf7 {[%clk 0:00:20]} 44. Re2 {[%clk 0:00:02]}  Kf6 {[%clk 0:00:20]} 45. Rc2 {[%clk 0:00:02]}  e5 {[%clk 0:00:18]} 46. Nb7 {[%clk 0:00:03]}  f4 {[%clk 0:00:18]} 47. gxf4 {[%clk 0:00:02]}  exf4 {[%clk 0:00:19]} 48. Nxc5 {[%clk 0:00:03]}  Kf5 {[%clk 0:00:18]} 49. b4 {[%clk 0:00:02]}  Rd4 {[%clk 0:00:16]} 50. a3 {[%clk 0:00:02]}  Rd1 {[%clk 0:00:16]} 51. Nxa6 {[%clk 0:00:02]}  f3+ {[%clk 0:00:15]} 52. Kh2 {[%clk 0:00:03]}  Kg5 {[%clk 0:00:15]} 53. Nc7 {[%clk 0:00:03]}  Kh4 {[%clk 0:00:15]} 54. Nxb5 {[%clk 0:00:04]}  Re1 {[%clk 0:00:10]} 55. Nd4 {[%clk 0:00:04]}  Re4 {[%clk 0:00:10]} 56. Nf5+ {[%clk 0:00:04]}  Kg5 {[%clk 0:00:10]} 57. Ne3 {[%clk 0:00:04]}  Kh4 {[%clk 0:00:09]} 58. Nf5+ {[%clk 0:00:05]}  Kg5 {[%clk 0:00:09]} 59. Ng3 {[%clk 0:00:06]}  Re1 {[%clk 0:00:09]} 60. b5 {[%clk 0:00:05]}  Rb1 {[%clk 0:00:09]} 61. a4 {[%clk 0:00:05]}  Kh4 {[%clk 0:00:08]} 62. Ra2 {[%clk 0:00:03]}  Rb4 {[%clk 0:00:04]} 63. a5 {[%clk 0:00:03]}  Rxb5 {[%clk 0:00:04]} 64. a6 {[%clk 0:00:03]}  Rb8 {[%clk 0:00:05]} 65. a7 {[%clk 0:00:03]}  Ra8 {[%clk 0:00:03]} 66. Ra5 {[%clk 0:00:04]}  Rh8 {[%clk 0:00:03]} 67. Rh5+ {[%clk 0:00:03]}  Rxh5 {[%clk 0:00:01]} 68. Nxh5 {[%clk 0:00:04]}  g3+ {[%clk 0:00:01]} 69. Nxg3 {[%clk 0:00:04]}  Kg4 {[%clk 0:00:00]} 70. a8=Q {[%clk 0:00:05]} 1-0


[Site "https://www.chess.com"]

[Event "Titled Tuesday Blitz July 25 Late 2023"]
[White "Terletsky, Oleg"]
[Black "Pinero Rodriguez, Carlos Jose"]
[WhiteFideId "14116774"]
[BlackFideId "3901726"]
[WhiteElo "2521"]
[BlackElo "2634"]
[Result "1-0"]
[Round "11"]
[TimeControl "180+2"]
[Date "2023.07.25"]
[WhiteClock "0:00:43"]
[BlackClock "0:00:56"]
[Board "46"]

1. e4 {[%clk 0:03:00]}  c5 {[%clk 0:03:00]} 2. Nf3 {[%clk 0:03:00]}  e6 {[%clk 0:03:00]} 3. d4 {[%clk 0:03:00]}  cxd4 {[%clk 0:03:01]} 4. Nxd4 {[%clk 0:03:01]}  a6 {[%clk 0:03:01]} 5. Nc3 {[%clk 0:03:01]}  Qc7 {[%clk 0:03:02]} 6. Bd3 {[%clk 0:03:00]}  Nf6 {[%clk 0:03:02]} 7. O-O {[%clk 0:03:00]}  h5 {[%clk 0:03:03]} 8. h3 {[%clk 0:02:41]}  Bc5 {[%clk 0:03:02]} 9. Nb3 {[%clk 0:02:24]}  Ng4 {[%clk 0:03:01]} 10. hxg4 {[%clk 0:02:22]}  hxg4 {[%clk 0:03:02]} 11. Re1 {[%clk 0:02:21]}  Qh2+ {[%clk 0:03:00]} 12. Kf1 {[%clk 0:02:22]}  Qh1+ {[%clk 0:02:40]} 13. Ke2 {[%clk 0:02:21]}  Qxg2 {[%clk 0:02:41]} 14. Nxc5 {[%clk 0:01:54]}  Qf3+ {[%clk 0:02:40]} 15. Kd2 {[%clk 0:01:54]}  Qxf2+ {[%clk 0:02:40]} 16. Qe2 {[%clk 0:01:54]}  Qxc5 {[%clk 0:02:34]} 17. Qxg4 {[%clk 0:01:45]}  Nc6 {[%clk 0:02:29]} 18. Qxg7 {[%clk 0:01:39]}  Rh2+ {[%clk 0:02:28]} 19. Re2 {[%clk 0:01:29]}  Rh1 {[%clk 0:02:27]} 20. Qg8+ {[%clk 0:00:55]}  Ke7 {[%clk 0:02:26]} 21. Nd5+ {[%clk 0:00:56]}  exd5 {[%clk 0:01:32]} 22. exd5+ {[%clk 0:00:54]}  Kf6 {[%clk 0:01:32]} 23. dxc6 {[%clk 0:00:46]}  dxc6 {[%clk 0:01:02]} 24. Qd8+ {[%clk 0:00:44]}  Kg7 {[%clk 0:00:56]} 25. Rg2+ {[%clk 0:00:43]} 1-0


[Site "https://www.chess.com"]

[Event "Titled Tuesday Blitz July 25 Late 2023"]
[White "Zavgorodniy, Sergiy"]
[Black "Michalczak, Thomas"]
[WhiteFideId "14110148"]
[BlackFideId "4622634"]
[WhiteElo "2603"]
[BlackElo "2491"]
[Result "1/2-1/2"]
[Round "11"]
[TimeControl "180+2"]
[Date "2023.07.25"]
[WhiteClock "0:01:32"]
[BlackClock "0:00:41"]
[Board "48"]

1. d4 {[%clk 0:02:51]}  Nf6 {[%clk 0:02:58]} 2. c4 {[%clk 0:02:49]}  e6 {[%clk 0:02:58]} 3. Nf3 {[%clk 0:02:49]}  d5 {[%clk 0:02:58]} 4. e3 {[%clk 0:02:50]}  a6 {[%clk 0:02:54]} 5. Nbd2 {[%clk 0:02:50]}  b6 {[%clk 0:02:54]} 6. Bd3 {[%clk 0:02:50]}  Bb7 {[%clk 0:02:54]} 7. O-O {[%clk 0:02:51]}  Nbd7 {[%clk 0:02:53]} 8. Qe2 {[%clk 0:02:51]}  Ne4 {[%clk 0:02:48]} 9. b3 {[%clk 0:02:51]}  f5 {[%clk 0:02:44]} 10. Bb2 {[%clk 0:02:51]}  Bd6 {[%clk 0:02:44]} 11. cxd5 {[%clk 0:02:48]}  exd5 {[%clk 0:02:44]} 12. Ne5 {[%clk 0:02:48]}  O-O {[%clk 0:02:29]} 13. f4 {[%clk 0:02:47]}  Ndf6 {[%clk 0:02:26]} 14. Ndf3 {[%clk 0:02:45]}  Qe8 {[%clk 0:02:13]} 15. Rac1 {[%clk 0:02:44]}  Rd8 {[%clk 0:02:10]} 16. a4 {[%clk 0:02:40]}  Ra8 {[%clk 0:02:08]} 17. Rc2 {[%clk 0:02:40]}  Qh5 {[%clk 0:02:05]} 18. Rfc1 {[%clk 0:02:38]}  Ng4 {[%clk 0:02:03]} 19. h3 {[%clk 0:02:33]}  Ngf2 {[%clk 0:01:56]} 20. Kh2 {[%clk 0:02:22]}  Nxd3 {[%clk 0:01:55]} 21. Qxd3 {[%clk 0:02:21]}  Rf6 {[%clk 0:01:47]} 22. Rg1 {[%clk 0:02:08]}  Kh8 {[%clk 0:01:38]} 23. g4 {[%clk 0:02:04]}  fxg4 {[%clk 0:01:38]} 24. Nxg4 {[%clk 0:02:01]}  Bc8 {[%clk 0:01:06]} 25. Rcg2 {[%clk 0:01:59]}  Bxg4 {[%clk 0:00:57]} 26. Rxg4 {[%clk 0:01:59]}  Rh6 {[%clk 0:00:58]} 27. Qf1 {[%clk 0:01:50]}  Nf2 {[%clk 0:00:50]} 28. R4g3 {[%clk 0:01:38]}  Ne4 {[%clk 0:00:41]} 29. Rg4 {[%clk 0:01:38]}  Nf2 {[%clk 0:00:41]} 30. R4g3 {[%clk 0:01:37]}  Ne4 {[%clk 0:00:41]} 31. Rg4 {[%clk 0:01:32]} 1/2-1/2


[Site "https://www.chess.com"]

[Event "Titled Tuesday Blitz July 25 Late 2023"]
[White "Trifan, Andrei Ioan"]
[Black "Toncheva, Nadya"]
[WhiteFideId "12967068"]
[BlackFideId "2924056"]
[WhiteElo "2582"]
[BlackElo "2475"]
[Result "1-0"]
[Round "11"]
[TimeControl "180+2"]
[Date "2023.07.25"]
[WhiteClock "0:00:52"]
[BlackClock "0:00:01"]
[Board "51"]

1. e4 {[%clk 0:03:00]}  c5 {[%clk 0:03:00]} 2. Nf3 {[%clk 0:02:59]}  Nc6 {[%clk 0:03:00]} 3. Nc3 {[%clk 0:02:57]}  g6 {[%clk 0:03:00]} 4. Bc4 {[%clk 0:02:55]}  Bg7 {[%clk 0:02:59]} 5. O-O {[%clk 0:02:55]}  e6 {[%clk 0:02:59]} 6. Re1 {[%clk 0:02:55]}  Nge7 {[%clk 0:03:00]} 7. d3 {[%clk 0:02:52]}  O-O {[%clk 0:02:57]} 8. e5 {[%clk 0:02:52]}  d5 {[%clk 0:02:57]} 9. exd6 {[%clk 0:02:53]}  Nf5 {[%clk 0:02:57]} 10. Ne4 {[%clk 0:02:50]}  Nxd6 {[%clk 0:02:16]} 11. Nxc5 {[%clk 0:02:42]}  Qa5 {[%clk 0:02:07]} 12. Nb3 {[%clk 0:02:40]}  Qh5 {[%clk 0:02:04]} 13. Nfd2 {[%clk 0:02:39]}  Qf5 {[%clk 0:01:57]} 14. Ne4 {[%clk 0:02:35]}  Nxc4 {[%clk 0:01:54]} 15. dxc4 {[%clk 0:02:34]}  Rd8 {[%clk 0:01:52]} 16. Qe2 {[%clk 0:02:30]}  b6 {[%clk 0:01:41]} 17. Bg5 {[%clk 0:02:17]}  f6 {[%clk 0:01:23]} 18. g4 {[%clk 0:02:14]}  Qe5 {[%clk 0:01:19]} 19. Nxf6+ {[%clk 0:02:12]}  Bxf6 {[%clk 0:01:10]} 20. Qxe5 {[%clk 0:02:12]}  Nxe5 {[%clk 0:01:02]} 21. Bxf6 {[%clk 0:02:12]}  Nf3+ {[%clk 0:01:03]} 22. Kg2 {[%clk 0:01:48]}  Nxe1+ {[%clk 0:01:02]} 23. Rxe1 {[%clk 0:01:49]}  Rf8 {[%clk 0:01:02]} 24. g5 {[%clk 0:01:49]}  Bd7 {[%clk 0:00:57]} 25. Nd4 {[%clk 0:01:46]}  Kf7 {[%clk 0:00:53]} 26. Kg3 {[%clk 0:01:44]}  Rfc8 {[%clk 0:00:51]} 27. b3 {[%clk 0:01:43]}  h5 {[%clk 0:00:42]} 28. a4 {[%clk 0:01:36]}  Rc5 {[%clk 0:00:38]} 29. Nf3 {[%clk 0:01:34]}  Be8 {[%clk 0:00:32]} 30. Ne5+ {[%clk 0:01:33]}  Kf8 {[%clk 0:00:31]} 31. Rd1 {[%clk 0:01:31]}  Rac8 {[%clk 0:00:24]} 32. Rd6 {[%clk 0:01:31]}  Rxe5 {[%clk 0:00:10]} 33. Bxe5 {[%clk 0:01:30]}  Ke7 {[%clk 0:00:11]} 34. Rd4 {[%clk 0:01:28]}  Bc6 {[%clk 0:00:09]} 35. Bf6+ {[%clk 0:01:27]}  Kf7 {[%clk 0:00:08]} 36. Kf4 {[%clk 0:01:27]}  a6 {[%clk 0:00:06]} 37. Rd6 {[%clk 0:01:15]}  b5 {[%clk 0:00:05]} 38. cxb5 {[%clk 0:01:16]}  axb5 {[%clk 0:00:06]} 39. axb5 {[%clk 0:01:17]}  Bxb5 {[%clk 0:00:06]} 40. c4 {[%clk 0:01:18]}  Bc6 {[%clk 0:00:05]} 41. Ke5 {[%clk 0:01:17]}  Rc7 {[%clk 0:00:03]} 42. Rxe6 {[%clk 0:01:15]}  Bf3 {[%clk 0:00:03]} 43. Rb6 {[%clk 0:01:12]}  Bd1 {[%clk 0:00:03]} 44. Kd6 {[%clk 0:01:09]}  Rc8 {[%clk 0:00:03]} 45. Rb7+ {[%clk 0:01:09]}  Kf8 {[%clk 0:00:03]} 46. c5 {[%clk 0:01:08]}  Bc2 {[%clk 0:00:02]} 47. b4 {[%clk 0:01:05]}  Bf5 {[%clk 0:00:01]} 48. c6 {[%clk 0:01:03]}  Be4 {[%clk 0:00:01]} 49. b5 {[%clk 0:01:03]}  Bf3 {[%clk 0:00:01]} 50. Rh7 {[%clk 0:00:59]}  Be4 {[%clk 0:00:01]} 51. Rh8+ {[%clk 0:00:55]}  Kf7 {[%clk 0:00:02]} 52. Rxc8 {[%clk 0:00:55]}  Bxc6 {[%clk 0:00:01]} 53. Rc7+ {[%clk 0:00:52]} 1-0


[Site "https://www.chess.com"]

[Event "Titled Tuesday Blitz July 25 Late 2023"]
[White "Hajiyev, Kanan"]
[Black "Perske, Thore"]
[WhiteFideId "13404148"]
[BlackFideId "12902195"]
[WhiteElo "2576"]
[BlackElo "2477"]
[Result "1-0"]
[Round "11"]
[TimeControl "180+2"]
[Date "2023.07.25"]
[WhiteClock "0:00:06"]
[BlackClock "0:00:28"]
[Board "52"]

1. d4 {[%clk 0:03:00]}  d5 {[%clk 0:03:00]} 2. Nf3 {[%clk 0:03:01]}  Nf6 {[%clk 0:03:00]} 3. c4 {[%clk 0:03:02]}  c6 {[%clk 0:03:00]} 4. cxd5 {[%clk 0:03:03]}  cxd5 {[%clk 0:03:00]} 5. Nc3 {[%clk 0:03:04]}  Nc6 {[%clk 0:03:00]} 6. Bg5 {[%clk 0:03:05]}  Ne4 {[%clk 0:02:55]} 7. Bf4 {[%clk 0:03:05]}  Qa5 {[%clk 0:02:45]} 8. Qb3 {[%clk 0:03:02]}  e6 {[%clk 0:02:36]} 9. e3 {[%clk 0:03:02]}  Bb4 {[%clk 0:02:35]} 10. Rc1 {[%clk 0:03:01]}  O-O {[%clk 0:02:29]} 11. Bd3 {[%clk 0:03:01]}  f5 {[%clk 0:02:26]} 12. O-O {[%clk 0:03:01]}  Bd7 {[%clk 0:02:22]} 13. Rfd1 {[%clk 0:02:47]}  Be8 {[%clk 0:02:18]} 14. Ne5 {[%clk 0:02:40]}  g5 {[%clk 0:02:06]} 15. Nxc6 {[%clk 0:02:36]}  bxc6 {[%clk 0:02:03]} 16. Be5 {[%clk 0:02:21]}  c5 {[%clk 0:02:03]} 17. f3 {[%clk 0:02:11]}  c4 {[%clk 0:02:00]} 18. Bxc4 {[%clk 0:02:11]}  dxc4 {[%clk 0:01:58]} 19. Qxc4 {[%clk 0:02:11]}  Nxc3 {[%clk 0:01:53]} 20. Qxe6+ {[%clk 0:02:05]}  Rf7 {[%clk 0:01:41]} 21. bxc3 {[%clk 0:02:03]}  Ba3 {[%clk 0:01:19]} 22. Rb1 {[%clk 0:01:57]}  Ba4 {[%clk 0:01:16]} 23. Rb7 {[%clk 0:01:51]}  Rf8 {[%clk 0:01:11]} 24. Rdb1 {[%clk 0:01:31]}  Qxc3 {[%clk 0:01:02]} 25. Rxf7 {[%clk 0:00:48]}  Rxf7 {[%clk 0:01:00]} 26. Rb8+ {[%clk 0:00:44]}  Bf8 {[%clk 0:01:00]} 27. h4 {[%clk 0:00:25]}  Qe1+ {[%clk 0:00:58]} 28. Kh2 {[%clk 0:00:24]}  Qxh4+ {[%clk 0:00:59]} 29. Kg1 {[%clk 0:00:24]}  Qe1+ {[%clk 0:00:57]} 30. Kh2 {[%clk 0:00:24]}  Qxe3 {[%clk 0:00:55]} 31. Rxf8+ {[%clk 0:00:09]}  Kxf8 {[%clk 0:00:55]} 32. Bd6+ {[%clk 0:00:10]}  Kg7 {[%clk 0:00:56]} 33. Qxe3 {[%clk 0:00:10]}  h6 {[%clk 0:00:48]} 34. Qe5+ {[%clk 0:00:10]}  Kg8 {[%clk 0:00:47]} 35. Qe6 {[%clk 0:00:10]}  Bd7 {[%clk 0:00:46]} 36. Qxh6 {[%clk 0:00:09]}  Rg7 {[%clk 0:00:47]} 37. Kg1 {[%clk 0:00:08]}  g4 {[%clk 0:00:28]} 38. Be5 {[%clk 0:00:06]} 1-0


[Site "https://www.chess.com"]

[Event "Titled Tuesday Blitz July 25 Late 2023"]
[White "Musovic, Armin"]
[Black "Rios Escobar, Adan"]
[WhiteFideId "939935"]
[BlackFideId "3403645"]
[WhiteElo "2546"]
[BlackElo "2446"]
[Result "1-0"]
[Round "11"]
[TimeControl "180+2"]
[Date "2023.07.25"]
[WhiteClock "0:00:13"]
[BlackClock "0:00:00"]
[Board "55"]

1. a3 {[%clk 0:02:57]}  e5 {[%clk 0:02:59]} 2. Nc3 {[%clk 0:02:58]}  g6 {[%clk 0:02:59]} 3. d4 {[%clk 0:02:58]}  Bg7 {[%clk 0:02:54]} 4. dxe5 {[%clk 0:02:55]}  Bxe5 {[%clk 0:02:54]} 5. Nf3 {[%clk 0:02:56]}  Bg7 {[%clk 0:02:55]} 6. Bg5 {[%clk 0:02:55]}  Ne7 {[%clk 0:02:49]} 7. Qd2 {[%clk 0:02:52]}  h6 {[%clk 0:02:48]} 8. Bh4 {[%clk 0:02:47]}  Nbc6 {[%clk 0:02:48]} 9. O-O-O {[%clk 0:02:47]}  g5 {[%clk 0:02:48]} 10. Bg3 {[%clk 0:02:46]}  d6 {[%clk 0:02:49]} 11. e4 {[%clk 0:02:45]}  Ng6 {[%clk 0:02:44]} 12. Bc4 {[%clk 0:02:39]}  Bg4 {[%clk 0:02:31]} 13. Kb1 {[%clk 0:02:27]}  Qd7 {[%clk 0:02:30]} 14. h3 {[%clk 0:02:24]}  Bxf3 {[%clk 0:02:28]} 15. gxf3 {[%clk 0:02:25]}  Nge5 {[%clk 0:02:28]} 16. Bxe5 {[%clk 0:02:19]}  Nxe5 {[%clk 0:02:28]} 17. Bb5 {[%clk 0:02:19]}  c6 {[%clk 0:02:24]} 18. Be2 {[%clk 0:02:19]}  O-O-O {[%clk 0:02:23]} 19. h4 {[%clk 0:02:12]}  Qe7 {[%clk 0:02:18]} 20. f4 {[%clk 0:02:06]}  gxf4 {[%clk 0:02:12]} 21. Qxf4 {[%clk 0:02:07]}  Kb8 {[%clk 0:02:08]} 22. Qe3 {[%clk 0:01:56]}  Rhe8 {[%clk 0:02:04]} 23. f4 {[%clk 0:01:54]}  Ng6 {[%clk 0:02:04]} 24. h5 {[%clk 0:01:52]}  Nf8 {[%clk 0:01:59]} 25. Bf3 {[%clk 0:01:48]}  f5 {[%clk 0:01:53]} 26. e5 {[%clk 0:01:38]}  dxe5 {[%clk 0:01:51]} 27. Rxd8+ {[%clk 0:01:39]}  Rxd8 {[%clk 0:01:52]} 28. fxe5 {[%clk 0:01:29]}  Qxe5 {[%clk 0:01:49]} 29. Qf2 {[%clk 0:01:19]}  Ne6 {[%clk 0:01:45]} 30. Re1 {[%clk 0:01:15]}  Qf6 {[%clk 0:01:45]} 31. Rg1 {[%clk 0:01:00]}  Ng5 {[%clk 0:01:40]} 32. Be2 {[%clk 0:00:57]}  f4 {[%clk 0:01:36]} 33. Bd3 {[%clk 0:00:52]}  f3 {[%clk 0:01:31]} 34. Rf1 {[%clk 0:00:48]}  Qd6 {[%clk 0:01:06]} 35. Nd1 {[%clk 0:00:19]}  Rf8 {[%clk 0:00:58]} 36. Qe3 {[%clk 0:00:18]}  Qd4 {[%clk 0:00:41]} 37. Qe7 {[%clk 0:00:17]}  Qf6 {[%clk 0:00:23]} 38. Qb4 {[%clk 0:00:17]}  Rd8 {[%clk 0:00:12]} 39. Qb3 {[%clk 0:00:16]}  Qd6 {[%clk 0:00:11]} 40. Ka2 {[%clk 0:00:14]}  a5 {[%clk 0:00:11]} 41. a4 {[%clk 0:00:14]}  Qd5 {[%clk 0:00:11]} 42. Bc4 {[%clk 0:00:13]}  Qc5 {[%clk 0:00:10]} 43. c3 {[%clk 0:00:10]}  Ka7 {[%clk 0:00:10]} 44. Rf2 {[%clk 0:00:05]}  Qb6 {[%clk 0:00:09]} 45. Rf1 {[%clk 0:00:05]}  Rd2 {[%clk 0:00:08]} 46. Qxb6+ {[%clk 0:00:05]}  Kxb6 {[%clk 0:00:09]} 47. Kb3 {[%clk 0:00:06]}  Kc5 {[%clk 0:00:09]} 48. Bg8 {[%clk 0:00:06]}  b5 {[%clk 0:00:09]} 49. axb5 {[%clk 0:00:06]}  cxb5 {[%clk 0:00:10]} 50. Ne3 {[%clk 0:00:05]}  a4+ {[%clk 0:00:10]} 51. Ka3 {[%clk 0:00:05]}  f2 {[%clk 0:00:07]} 52. Ng4 {[%clk 0:00:04]}  Ne4 {[%clk 0:00:07]} 53. Bh7 {[%clk 0:00:05]}  Nxc3 {[%clk 0:00:06]} 54. bxc3 {[%clk 0:00:04]}  Bxc3 {[%clk 0:00:07]} 55. Rxf2 {[%clk 0:00:05]}  b4+ {[%clk 0:00:07]} 56. Kxa4 {[%clk 0:00:05]}  Rd8 {[%clk 0:00:04]} 57. Kb3 {[%clk 0:00:05]}  Rd7 {[%clk 0:00:05]} 58. Rf5+ {[%clk 0:00:05]}  Kd4 {[%clk 0:00:05]} 59. Nf6 {[%clk 0:00:04]}  Ra7 {[%clk 0:00:05]} 60. Rd5+ {[%clk 0:00:04]}  Ke3 {[%clk 0:00:05]} 61. Rd7 {[%clk 0:00:02]}  Ra3+ {[%clk 0:00:04]} 62. Kc4 {[%clk 0:00:03]}  Be1 {[%clk 0:00:04]} 63. Nd5+ {[%clk 0:00:03]}  Kf2 {[%clk 0:00:04]} 64. Nxb4 {[%clk 0:00:03]}  Ra4 {[%clk 0:00:03]} 65. Rf7+ {[%clk 0:00:04]}  Kg3 {[%clk 0:00:03]} 66. Rb7 {[%clk 0:00:05]}  Kh4 {[%clk 0:00:03]} 67. Bc2 {[%clk 0:00:05]}  Bxb4 {[%clk 0:00:03]} 68. Bxa4 {[%clk 0:00:05]}  Bd6 {[%clk 0:00:02]} 69. Be8 {[%clk 0:00:06]}  Bf4 {[%clk 0:00:02]} 70. Kd5 {[%clk 0:00:07]}  Kg5 {[%clk 0:00:03]} 71. Ke4 {[%clk 0:00:08]}  Bg3 {[%clk 0:00:03]} 72. Kf3 {[%clk 0:00:09]}  Bh2 {[%clk 0:00:04]} 73. Rb5+ {[%clk 0:00:09]}  Kh4 {[%clk 0:00:04]} 74. Rb4+ {[%clk 0:00:09]}  Kh3 {[%clk 0:00:04]} 75. Rg4 {[%clk 0:00:10]}  Bd6 {[%clk 0:00:02]} 76. Bd7 {[%clk 0:00:11]}  Kh2 {[%clk 0:00:02]} 77. Rg2+ {[%clk 0:00:10]}  Kh1 {[%clk 0:00:02]} 78. Rd2 {[%clk 0:00:11]}  Bc5 {[%clk 0:00:02]} 79. Rc2 {[%clk 0:00:12]}  Bg1 {[%clk 0:00:02]} 80. Bc6 {[%clk 0:00:13]}  Bd4 {[%clk 0:00:00]} 81. Kg3+ {[%clk 0:00:13]} 1-0


[Site "https://www.chess.com"]